bitfinex/quotes_SOLUSD_20210401
["timestamp","ask_amount","ask_price","bid_price","bid_amount"]
[1617235298096,934.17965828,20.006,19.9,0.81]
[1617235327440,934.02162385,20.006,19.9,0.81]
[1617235346867,817.88479117,20.006,19.9,0.81]
[1617235357783,854.27923875,20.006,19.9,0.81]
[1617235357984,934.24062104,20.006,19.9,0.81]
[1617235561689,934.24062104,20.006,19.545,2.58803699]
[1617235748559,934.24062104,20.006,19.545,4.91508566]
[1617235833583,934.24062104,20.006,19.545,2.58803699]
[1617235847105,0.001,19.992,19.545,2.58803699]
[1617235847605,116.35682987,19.992,19.545,2.58803699]
[1617235930640,115.99470651,19.992,19.545,2.58803699]
[1617235950871,817.88479117,20.006,19.545,2.58803699]
[1617235961983,854.21973119,20.006,19.545,2.58803699]
[1617235966785,934.09130134,20.006,19.545,2.58803699]
[1617236106685,934.09130134,20.006,19.545,4.91616857]
[1617236112899,894.00599482,19.9,19.545,4.91616857]
[1617236113298,1010.21250499,19.9,19.545,4.91616857]
[1617236126712,1010.21250499,19.9,19.538,2.37671549]
[1617236291640,2.32580346,19.899,19.538,2.37671549]
[1617236292041,38.66074348,19.899,19.538,2.37671549]
[1617236292340,118.53231363,19.899,19.538,2.37671549]
[1617236373956,116.20651017,19.899,19.538,2.37671549]
[1617236469102,2.32580346,19.898,19.538,2.37671549]
[1617236469601,118.53231363,19.898,19.538,2.37671549]
[1617236553413,116.20651017,19.898,19.538,2.37671549]
[1617236554814,894.00599482,19.9,19.538,2.37671549]
[1617236565229,930.46762181,19.9,19.538,2.37671549]
[1617236584364,1010.60102572,19.9,19.538,2.37671549]
[1617236652859,2.32580346,19.899,19.538,2.37671549]
[1617236653259,118.92083436,19.899,19.538,2.37671549]
[1617236683201,118.92083436,19.899,19.538,2.37550543]
[1617236734071,116.5950309,19.899,19.538,2.37550543]
[1617236830907,2.32580346,19.898,19.538,2.37550543]
[1617236831508,118.92083436,19.898,19.538,2.37550543]
[1617236831709,118.92083436,19.898,19.5,27.22550543]
[1617236913641,936.9929412,19.865,19.5,27.22550543]
[1617236914141,1053.5879721,19.865,19.5,27.22550543]
[1617237011464,2.32580346,19.864,19.5,27.22550543]
[1617237011964,118.92083436,19.864,19.5,27.22550543]
[1617237093689,116.5950309,19.864,19.5,27.22550543]
[1617237158696,936.9929412,19.865,19.5,27.22550543]
[1617237170312,973.4508295,19.865,19.5,27.22550543]
[1617237176820,1053.58423341,19.865,19.5,27.22550543]
[1617237191737,2.32580346,19.864,19.5,27.22550543]
[1617237192137,118.91709567,19.864,19.5,27.22550543]
[1617237274156,116.59129221,19.864,19.5,27.22550543]
[1617237385031,116.59129221,19.864,19.5,27.22449217]
[1617237387934,2.32580346,19.863,19.5,27.22449217]
[1617237388435,118.91709567,19.863,19.5,27.22449217]
[1617237453230,116.59129221,19.863,19.5,27.22449217]
[1617237546080,2.32580346,19.862,19.5,27.22449217]
[1617237546479,118.91709567,19.862,19.5,27.22449217]
[1617237633395,116.59129221,19.862,19.5,27.22449217]
[1617237729137,2.32580346,19.861,19.5,27.22449217]
[1617237729640,118.91709567,19.861,19.5,27.22449217]
[1617237762785,2.32580346,19.861,19.5,27.22449217]
[1617237774002,38.7818227,19.861,19.5,27.22449217]
[1617237774202,118.89060679,19.861,19.5,27.22449217]
[1617237814271,116.56480333,19.861,19.5,27.22449217]
[1617237872064,116.56480333,19.861,19.5,27.22344008]
[1617237911830,2.32580346,19.86,19.5,27.22344008]
[1617237912229,118.89060679,19.86,19.5,27.22344008]
[1617237993642,116.56480333,19.86,19.5,27.22344008]
[1617238092583,2.32580346,19.859,19.5,27.22344008]
[1617238092981,118.89060679,19.859,19.5,27.22344008]
[1617238102194,118.89060679,19.859,19.5,144.40575364]
[1617238104096,118.89060679,19.859,19.5,107.81090437]
[1617238105098,118.89060679,19.859,19.5,144.40575364]
[1617238106199,118.89060679,19.859,19.5,63.81828935]
[1617238118216,118.89060679,19.859,19.5,144.40575364]
[1617238122221,118.89060679,19.859,19.5,63.81828935]
[1617238154074,118.89060679,19.859,19.5,144.40575364]
[1617238166095,118.89060679,19.859,19.5,63.81828935]
[1617238173703,116.56480333,19.859,19.5,63.81828935]
[1617238186127,116.56480333,19.859,19.5,144.40575364]
[1617238194143,116.56480333,19.859,19.5,63.81828935]
[1617238215076,116.56480333,19.859,19.5,27.22344008]
[1617238217081,116.56480333,19.859,19.5,63.81828935]
[1617238218183,116.56480333,19.859,19.5,27.22344008]
[1617238269956,2.32580346,19.858,19.5,27.22344008]
[1617238270457,118.89060679,19.858,19.5,27.22344008]
[1617238353582,116.56480333,19.858,19.5,27.22344008]
[1617238367205,958.70334258,19.954,19.5,27.22344008]
[1617238379226,995.11642626,19.954,19.5,27.22344008]
[1617238380526,1075.11460812,19.954,19.5,27.22344008]
[1617238420187,0.001,19.917,19.5,27.22344008]
[1617238420385,0.001,19.917,19.534,0.001]
[1617238420584,79.99918186,19.917,19.534,0.001]
[1617238420786,116.41226554,19.917,19.534,0.001]
[1617238448920,2.32580346,19.916,19.534,0.001]
[1617238449218,82.32398532,19.916,19.534,0.001]
[1617238449418,118.737069,19.916,19.534,0.001]
[1617238456831,118.737069,19.916,19.515,36.53093142]
[1617238457332,118.737069,19.916,19.5,63.7543715]
[1617238487465,118.737069,19.916,19.5,27.22344008]
[1617238488369,118.737069,19.916,19.5,63.7543715]
[1617238505291,118.737069,19.916,19.5,27.22344008]
[1617238515307,118.737069,19.916,19.5,63.7543715]
[1617238516309,118.737069,19.916,19.5,27.22344008]
[1617238517310,118.737069,19.916,19.5,63.7543715]
[1617238518412,118.737069,19.916,19.5,27.22344008]
[1617238522318,118.737069,19.916,19.5,63.7543715]
[1617238524319,118.737069,19.916,19.5,27.22344008]
[1617238533731,116.41126554,19.916,19.5,27.22344008]
[1617238542749,116.39983458,19.916,19.5,27.22344008]
[1617238622270,2.32580346,19.915,19.5,27.22344008]
[1617238622670,38.73888714,19.915,19.5,27.22344008]
[1617238622871,118.72563804,19.915,19.5,27.22344008]
[1617238706179,0.001,19.878,19.5,27.22344008]
[1617238706581,36.41408368,19.878,19.5,27.22344008]
[1617238706782,116.40083458,19.878,19.5,27.22344008]
[1617238796417,116.40083458,19.878,19.5,63.7543715]
[1617238812046,2.32580346,19.877,19.5,63.7543715]
[1617238812546,118.72563804,19.877,19.5,63.7543715]
[1617238823366,118.72563804,19.877,19.5,144.2050783]
[1617238893879,116.39983458,19.877,19.5,144.2050783]
[1617238919409,116.39983458,19.877,19.5,63.7543715]
[1617238927322,116.39983458,19.877,19.5,144.2050783]
[1617238931528,116.39983458,19.877,19.5,27.22344008]
[1617238938337,116.39983458,19.877,19.5,63.7543715]
[1617238948354,116.39983458,19.877,19.5,27.22344008]
[1617238963476,116.39983458,19.877,19.5,63.7543715]
[1617238966480,116.39983458,19.877,19.5,27.22344008]
[1617238967380,116.39983458,19.877,19.5,63.7543715]
[1617238968383,116.39983458,19.877,19.5,27.22344008]
[1617238971186,0.001,19.878,19.5,27.22344008]
[1617238981000,36.34151059,19.878,19.5,27.22344008]
[1617238987107,116.204926,19.878,19.5,27.22344008]
[1617238987807,2.32580346,19.877,19.5,27.22344008]
[1617238988208,118.52972946,19.877,19.5,27.22344008]
[1617239023974,118.52972946,19.877,19.5,63.69254675]
[1617239030983,118.52972946,19.877,19.5,27.22344008]
[1617239037993,118.52972946,19.877,19.5,63.69254675]
[1617239038995,118.52972946,19.877,19.5,27.22344008]
[1617239043002,118.52972946,19.877,19.5,63.69254675]
[1617239044105,118.52972946,19.877,19.5,27.22344008]
[1617239048009,118.52972946,19.877,19.5,63.69254675]
[1617239073039,118.52972946,19.877,19.5,27.22344008]
[1617239073739,116.203926,19.877,19.5,27.22344008]
[1617239077143,116.203926,19.877,19.5,27.22227647]
[1617239166676,2.32580346,19.876,19.5,27.22227647]
[1617239167076,118.52972946,19.876,19.5,27.22227647]
[1617239254092,116.203926,19.876,19.5,27.22227647]
[1617239260203,116.203926,19.876,19.5,63.69138314]
[1617239262204,116.203926,19.876,19.5,27.22227647]
[1617239268115,116.203926,19.876,19.5,63.69138314]
[1617239326105,116.203926,19.876,19.5,27.22227647]
[1617239345926,2.32580346,19.875,19.5,27.22227647]
[1617239346328,118.52972946,19.875,19.5,27.22227647]
[1617239358145,118.52972946,19.875,19.5,63.69138314]
[1617239360047,118.52972946,19.875,19.5,27.22227647]
[1617239361048,118.52972946,19.875,19.5,63.69138314]
[1617239362152,118.52972946,19.875,19.5,27.22227647]
[1617239434046,116.203926,19.875,19.5,27.22227647]
[1617239443061,116.203926,19.875,19.5,63.69138314]
[1617239444461,116.203926,19.875,19.5,144.00579581]
[1617239524876,2.32580346,19.874,19.5,144.00579581]
[1617239525277,118.52972946,19.874,19.5,144.00579581]
[1617239529083,118.52972946,19.874,19.5,63.69138314]
[1617239537195,118.52972946,19.874,19.5,144.00579581]
[1617239541200,118.52972946,19.874,19.5,63.69138314]
[1617239542201,118.52972946,19.874,19.5,27.22227647]
[1617239546105,118.52972946,19.874,19.5,63.69138314]
[1617239575141,2.32580346,19.874,19.5,27.22227647]
[1617239587056,129.43963844,19.874,19.5,154.75296354]
[1617239595168,129.43963844,19.874,19.5,435.63711022]
[1617239613498,127.11383498,19.874,19.5,435.63711022]
[1617239618305,127.11383498,19.874,19.5,435.63584054]
[1617239621307,127.11256432,19.874,19.5,435.63584054]
[1617239639131,127.11256432,19.874,19.5,154.75169386]
[1617239707822,2.32580346,19.873,19.5,154.75169386]
[1617239708321,129.43836778,19.873,19.5,154.75169386]
[1617239759196,129.43836778,19.873,19.5,435.63584054]
[1617239793741,127.11256432,19.873,19.5,435.63584054]
[1617239823169,127.11256432,19.873,19.5,457.10527787]
[1617239823470,127.11256432,19.873,19.5,449.05423887]
[1617239824371,127.11256432,19.873,19.5,435.63584054]
[1617239825971,127.11256432,19.873,19.5,443.68408397]
[1617239826673,127.11256432,19.873,19.5,483.94856389]
[1617239827073,127.11256432,19.873,19.5,537.60403015]
[1617239827575,127.11256432,19.873,19.5,752.2906104]
[1617239827775,127.11256432,19.873,19.501,21.45147355]
[1617239828276,127.11256432,19.873,19.501,141.89352558]
[1617239828577,127.11256432,19.873,19.501,550.30835933]
[1617239828778,127.11256432,19.873,19.501,429.8663073]
[1617239828978,127.11256432,19.873,19.501,456.63981966]
[1617239829581,127.11256432,19.873,19.501,991.65637147]
[1617239830282,127.11256432,19.873,19.501,1232.53257004]
[1617239833388,127.11256432,19.873,19.501,1286.03349088]
[1617239833586,127.11256432,19.873,19.501,1393.03938959]
[1617239838093,127.11256432,19.873,19.502,8.00479836]
[1617239838293,127.11256432,19.873,19.503,8.00010004]
[1617239838697,127.11256432,19.873,19.504,47.83975732]
[1617239839094,127.11256432,19.873,19.504,502.34012306]
[1617239839294,127.11256432,19.873,19.504,629.87081013]
[1617239839493,127.11256432,19.873,19.504,509.45523751]
[1617239842303,127.11256432,19.873,19.504,461.61548019]
[1617239843705,127.11256432,19.873,19.504,408.41483375]
[1617239888272,2.32580346,19.872,19.504,408.41483375]
[1617239888570,129.43836778,19.872,19.504,408.41483375]
[1617239914299,129.43836778,19.872,19.504,280.88414668]
[1617239914702,129.43836778,19.872,19.5,27.22100679]
[1617239929315,129.43836778,19.872,19.5,154.75169386]
[1617239930218,129.43836778,19.872,19.5,27.22100679]
[1617239933322,129.43836778,19.872,19.5,154.75169386]
[1617239966277,129.43836778,19.872,19.5,27.22100679]
[1617239974188,127.11256432,19.872,19.5,27.22100679]
[1617240029168,127.11256432,19.872,19.5,154.75169386]
[1617240031172,127.11256432,19.872,19.5,27.22100679]
[1617240035179,127.11256432,19.872,19.5,154.75169386]
[1617240036178,127.11256432,19.872,19.5,27.22100679]
[1617240062620,2.32580346,19.871,19.5,27.22100679]
[1617240063020,129.43836778,19.871,19.5,27.22100679]
[1617240064226,129.43836778,19.871,19.5,154.75169386]
[1617240065224,129.43836778,19.871,19.5,27.22100679]
[1617240066227,129.43836778,19.871,19.5,154.75169386]
[1617240068327,129.43836778,19.871,19.5,27.22100679]
[1617240149441,129.43836778,19.871,19.5,27.21977957]
[1617240153648,127.11256432,19.871,19.5,27.21977957]
[1617240154650,127.11256432,19.871,19.5,27.34190777]
[1617240173677,127.11128153,19.871,19.5,27.34190777]
[1617240179089,19.98,20.0,19.5,27.34190777]
[1617240192397,147.24332715,20.0,19.5,27.34190777]
[1617240245075,2.32580346,19.999,19.5,27.34190777]
[1617240245572,129.58913061,19.999,19.5,27.34190777]
[1617240333992,127.26332715,19.999,19.5,27.34190777]
[1617240397476,127.26332715,19.999,19.5,22.18190777]
[1617240421912,0.001,19.985,19.5,22.18190777]
[1617240422513,127.26432715,19.985,19.5,22.18190777]
[1617240603252,2.32580346,19.984,19.5,22.18190777]
[1617240603854,129.58913061,19.984,19.5,22.18190777]
[1617240693486,127.26332715,19.984,19.5,22.18190777]
[1617240708413,0.001,19.978,19.5,22.18190777]
[1617240708812,127.26432715,19.978,19.5,22.18190777]
[1617240738762,966.47488281,19.855,19.5,22.18190777]
[1617240739162,1093.73820996,19.855,19.5,22.18190777]
[1617240783021,966.47488281,19.855,19.5,22.18190777]
[1617240783219,2.32580346,19.854,19.5,22.18190777]
[1617240794746,129.94804164,19.854,19.5,22.18190777]
[1617240873864,127.62223818,19.854,19.5,22.18190777]
[1617240955180,127.62223818,19.854,19.5,22.18062215]
[1617240962788,2.32580346,19.853,19.5,22.18062215]
[1617240963288,129.94804164,19.853,19.5,22.18062215]
[1617241003448,129.94804164,19.853,19.5,17.02062215]
[1617241053518,127.62223818,19.853,19.5,17.02062215]
[1617241141740,2.32580346,19.852,19.5,17.02062215]
[1617241142240,129.94804164,19.852,19.5,17.02062215]
[1617241233576,127.62223818,19.852,19.5,17.02062215]
[1617241322306,2.32580346,19.851,19.5,17.02062215]
[1617241322805,129.94804164,19.851,19.5,17.02062215]
[1617241376979,129.91262805,19.851,19.5,17.02062215]
[1617241387097,2.29038987,19.851,19.5,17.02062215]
[1617241399008,129.6318526,19.851,19.5,17.02062215]
[1617241413328,127.34146273,19.851,19.5,17.02062215]
[1617241500859,2.29038986,19.85,19.5,17.02062215]
[1617241501358,129.63185259,19.85,19.5,17.02062215]
[1617241592888,127.34146273,19.85,19.5,17.02062215]
[1617241595091,87.34146273,19.85,19.5,17.02062215]
[1617241681023,2.29038986,19.849,19.5,17.02062215]
[1617241681523,89.63185259,19.849,19.5,17.02062215]
[1617241767157,89.63185259,19.849,19.5,144.81979487]
[1617241768157,89.63185259,19.849,19.5,17.02062215]
[1617241771164,89.63185259,19.849,19.5,144.81979487]
[1617241772969,87.34146273,19.849,19.5,144.81979487]
[1617241813126,87.34146273,19.849,19.5,17.02062215]
[1617241816130,87.34146273,19.849,19.5,144.81979487]
[1617241860192,2.29038986,19.848,19.5,144.81979487]
[1617241860592,89.63185259,19.848,19.5,144.81979487]
[1617241868199,89.63185259,19.848,19.5,17.02062215]
[1617241872207,89.63185259,19.848,19.5,144.81979487]
[1617241887127,89.63185259,19.848,19.5,426.28147655]
[1617241895139,0.32526873,19.847,19.5,144.81979487]
[1617241895638,87.66673146,19.847,19.5,144.81979487]
[1617241923184,87.66673146,19.847,19.5,426.28147655]
[1617241990978,87.66673146,19.847,19.5,17.02062215]
[1617241990979,0.32526873,19.847,19.5,17.02062215]
[1617241991378,0.32526873,19.926,19.5,17.02062215]
[1617242003598,0.32526873,19.926,19.5,144.43379348]
[1617242004900,0.32526873,19.926,19.5,425.04444051]
[1617242038747,2.29038986,19.925,19.5,425.04444051]
[1617242039448,0.32526873,19.924,19.5,425.04444051]
[1617242132593,0.32526873,19.924,19.5,425.04318838]
[1617242135497,0.32526873,19.926,19.5,425.04318838]
[1617242137304,0.001,19.883,19.5,425.04318838]
[1617242147612,0.001,19.883,19.5,144.43254135]
[1617242191671,0.001,19.883,19.5,425.04318838]
[1617242195675,0.001,19.883,19.5,144.43254135]
[1617242203587,0.001,19.883,19.5,425.04318838]
[1617242207595,0.001,19.883,19.5,144.43254135]
[1617242211603,0.001,19.883,19.5,425.04318838]
[1617242222318,2.29038986,19.882,19.5,425.04318838]
[1617242222520,0.32526873,19.881,19.5,425.04318838]
[1617242223620,0.32526873,19.881,19.5,144.43254135]
[1617242231630,0.32526873,19.881,19.5,425.04318838]
[1617242235640,0.32526873,19.881,19.5,144.43254135]
[1617242239642,0.32526873,19.881,19.5,425.04318838]
[1617242308656,0.32526873,19.881,19.5,433.33590707]
[1617242309159,0.32526873,19.881,19.5,474.83224728]
[1617242309656,0.32526873,19.881,19.501,8.27209043]
[1617242310054,0.32526873,19.881,19.501,536.72216665]
[1617242310255,0.32526873,19.881,19.501,430.08548546]
[1617242310955,0.32526873,19.881,19.501,926.64441403]
[1617242311457,0.32526873,19.881,19.501,954.2483365]
[1617242311655,0.32526873,19.881,19.501,945.97624607]
[1617242312661,0.32526873,19.881,19.501,954.20651447]
[1617242314763,0.32526873,19.881,19.501,954.32828967]
[1617242314966,0.32526873,19.881,19.501,1195.18559436]
[1617242315566,0.001,19.883,19.501,1195.18559436]
[1617242315766,0.001,19.883,19.504,8.15767088]
[1617242316166,0.001,19.883,19.504,416.18148924]
[1617242316367,0.001,19.883,19.504,408.02381836]
[1617242320072,0.001,19.883,19.504,416.17271137]
[1617242320371,0.001,19.883,19.505,8.13386626]
[1617242320672,0.001,19.883,19.505,288.74451329]
[1617242320872,0.001,19.883,19.505,408.02381836]
[1617242321975,0.001,19.883,19.505,416.14879781]
[1617242322175,0.001,19.883,19.505,408.02381836]
[1617242334691,0.001,19.883,19.506,8.13397669]
[1617242334992,0.001,19.883,19.507,48.74533496]
[1617242335394,0.001,19.883,19.507,169.13735161]
[1617242335593,0.001,19.883,19.507,577.16116997]
[1617242335993,0.001,19.883,19.507,448.64493083]
[1617242336194,0.001,19.883,19.507,435.10456001]
[1617242337195,0.001,19.883,19.507,408.02381836]
[1617242337698,0.001,19.883,19.507,416.12416155]
[1617242338397,0.001,19.883,19.507,429.62665748]
[1617242339300,0.001,19.883,19.507,421.52631429]
[1617242339699,0.001,19.883,19.507,408.02381836]
[1617242348207,0.001,19.883,19.507,429.74202079]
[1617242349313,0.001,19.883,19.507,456.90577564]
[1617242349812,0.001,19.883,19.507,448.76144973]
[1617242350513,0.001,19.883,19.507,435.18757321]
[1617242352018,0.001,19.883,19.507,408.02381836]
[1617242371546,962.99769809,19.981,19.507,408.02381836]
[1617242373247,962.99769809,19.981,19.507,408.14347626]
[1617242392369,962.99769809,19.981,19.507,416.75923913]
[1617242392669,962.99769809,19.981,19.507,1220.89819717]
[1617242392870,962.99769809,19.981,19.508,51.64796303]
[1617242393270,962.99769809,19.981,19.508,459.67178139]
[1617242393470,962.99769809,19.981,19.508,451.06378755]
[1617242394069,962.99769809,19.981,19.508,436.71713115]
[1617242394270,962.99769809,19.981,19.508,445.32462647]
[1617242394670,962.99769809,19.981,19.508,436.71713115]
[1617242395270,962.99769809,19.981,19.508,408.02381836]
[1617242396070,962.99769809,19.981,19.508,416.63837053]
[1617242396571,962.99769809,19.981,19.508,408.02381836]
[1617242398074,2.29038986,19.98,19.508,408.02381836]
[1617242398474,2.29038986,19.98,19.508,416.65518533]
[1617242398876,2.29038986,19.98,19.508,408.02381836]
[1617242423314,0.001,19.963,19.508,408.02381836]
[1617242423512,0.001,19.963,19.553,0.001]
[1617242424111,0.001,19.963,19.553,127.41417133]
[1617242435824,0.001,19.963,19.553,408.02481836]
[1617242495729,0.001,19.963,19.553,127.41417133]
[1617242499635,0.001,19.963,19.553,408.02481836]
[1617242581352,2.29038986,19.962,19.553,408.02481836]
[1617242595072,2.29038986,19.962,19.553,0.001]
[1617242606389,2.29038986,19.962,19.553,127.11483497]
[1617242607089,2.29038986,19.962,19.553,407.12278974]
[1617242614500,2.29038986,19.962,19.553,127.11483497]
[1617242634529,2.29038986,19.962,19.553,407.12278974]
[1617242662564,2.29038986,19.962,19.553,127.11483497]
[1617242666469,2.29038986,19.962,19.553,407.12278974]
[1617242673284,0.001,19.963,19.553,407.12278974]
[1617242716244,0.001,19.963,19.553,0.001]
[1617242726458,0.001,19.963,19.553,127.11483497]
[1617242765225,2.29038986,19.962,19.553,127.11483497]
[1617242786454,2.29038986,19.962,19.553,0.001]
[1617242787455,2.29038986,19.962,19.553,127.11483497]
[1617242794467,2.29038986,19.962,19.553,407.12278974]
[1617242802478,2.29038986,19.962,19.553,127.11483497]
[1617242850465,2.29038986,19.962,19.553,0.001]
[1617242854067,0.001,19.963,19.553,0.001]
[1617242872699,0.001,19.963,19.527,127.11383497]
[1617242873600,0.001,19.963,19.525,127.11383497]
[1617242878506,0.001,19.963,19.525,407.12178974]
[1617242945591,2.29038986,19.962,19.525,407.12178974]
[1617242949094,2.29038986,19.962,19.526,8.65479007]
[1617242949296,2.29038986,19.962,19.527,8.64496692]
[1617242949494,2.29038986,19.962,19.53,22.86659605]
[1617242950095,2.29038986,19.962,19.532,8.52365816]
[1617242950496,2.29038986,19.962,19.532,407.12178974]
[1617242961409,2.29038986,19.962,19.532,415.38403008]
[1617242961609,2.29038986,19.962,19.535,8.17464678]
[1617242962009,2.29038986,19.962,19.535,288.18260155]
[1617242962208,2.29038986,19.962,19.535,415.29643652]
[1617242962408,2.29038986,19.962,19.535,407.12178974]
[1617242968618,2.29038986,19.962,19.535,415.27031983]
[1617242969319,2.29038986,19.962,19.535,469.51400777]
[1617242969519,2.29038986,19.962,19.535,510.14226198]
[1617242973129,2.29038986,19.962,19.535,501.99373189]
[1617242973631,2.29038986,19.962,19.535,509.66589746]
[1617242974030,2.29038986,19.962,19.535,461.36547768]
[1617242975034,2.29038986,19.962,19.535,407.12178974]
[1617242988449,2.29038986,19.962,19.535,427.89990968]
[1617242989549,2.29038986,19.962,19.535,479.68015973]
[1617242989950,2.29038986,19.962,19.536,7.76028293]
[1617242990148,2.29038986,19.962,19.536,33.63105857]
[1617242990349,2.29038986,19.962,19.536,313.63901334]
[1617242990549,2.29038986,19.962,19.537,7.74252638]
[1617242990750,2.29038986,19.962,19.537,140.86497023]
[1617242990950,2.29038986,19.962,19.537,547.98675997]
[1617242991152,2.29038986,19.962,19.537,427.76428373]
[1617242992451,2.29038986,19.962,19.537,453.27456135]
[1617242994954,0.001,19.949,19.537,453.27456135]
[1617242995553,0.001,19.949,19.537,504.59898422]
[1617242996555,0.001,19.949,19.537,483.95649023]
[1617242997255,0.001,19.949,19.537,458.44621261]
[1617242998958,0.001,19.949,19.537,407.12178974]
[1617243085370,0.001,19.949,19.537,415.94097425]
[1617243085571,0.001,19.949,19.537,460.05926477]
[1617243085970,0.001,19.949,19.537,695.23119949]
[1617243087772,0.001,19.949,19.537,813.94539535]
[1617243088676,0.001,19.949,19.537,873.37004327]
[1617243090476,0.001,19.949,19.537,864.55085876]
[1617243091177,0.001,19.949,19.537,849.84476192]
[1617243092278,0.001,19.949,19.537,820.43256824]
[1617243092978,0.001,19.949,19.537,829.37306834]
[1617243093579,0.001,19.949,19.537,844.27491684]
[1617243093779,0.001,19.949,19.537,1201.90964173]
[1617243094680,0.001,19.949,19.537,1231.6699789]
[1617243094879,0.001,19.949,19.537,1222.7294788]
[1617243095982,0.001,19.949,19.537,1207.8276303]
[1617243096184,0.001,19.949,19.537,1216.62452838]
[1617243097084,0.001,19.949,19.537,1231.32158996]
[1617243101488,0.001,19.949,19.537,1222.52469188]
[1617243101686,0.001,19.949,19.537,1178.06729313]
[1617243103290,0.001,19.949,19.537,942.89535841]
[1617243103788,0.001,19.949,19.537,951.6999333]
[1617243103989,0.001,19.949,19.537,942.89535841]
[1617243106092,0.001,19.949,19.537,883.47071049]
[1617243110798,0.001,19.949,19.537,764.75651463]
[1617243117204,0.001,19.949,19.537,407.12178974]
[1617243120615,0.001,19.949,19.537,415.83002261]
[1617243120815,0.001,19.949,19.537,648.03004896]
[1617243121515,0.001,19.949,19.537,662.58614431]
[1617243122215,0.001,19.949,19.537,653.87791144]
[1617243122716,0.001,19.949,19.537,639.32181609]
[1617243124724,2.29038986,19.948,19.537,639.32181609]
[1617243131128,2.29038986,19.948,19.537,648.18716617]
[1617243131328,2.29038986,19.948,19.537,639.32181609]
[1617243131528,2.29038986,19.948,19.537,648.09816511]
[1617243131728,2.29038986,19.948,19.537,691.93712508]
[1617243134035,2.29038986,19.948,19.537,809.11404618]
[1617243134938,2.29038986,19.948,19.537,800.33769716]
[1617243135137,2.29038986,19.948,19.537,785.7247105]
[1617243135340,2.29038986,19.948,19.537,794.5134185]
[1617243136338,2.29038986,19.948,19.537,809.15444685]
[1617243136740,2.29038986,19.948,19.537,800.36573885]
[1617243136939,2.29038986,19.948,19.537,809.1513265]
[1617243137140,2.29038986,19.948,19.537,800.36573885]
[1617243137440,2.29038986,19.948,19.537,809.12142247]
[1617243137839,2.29038986,19.948,19.537,1275.64960484]
[1617243140045,2.29038986,19.948,19.537,1623.52081882]
[1617243140843,2.29038986,19.948,19.537,1681.54458307]
[1617243143045,2.29038986,19.948,19.538,8.68601918]
[1617243143345,2.29038986,19.948,19.538,52.12239191]
[1617243143543,2.29038986,19.948,19.538,459.24418165]
[1617243145650,2.29038986,19.948,19.538,574.81988188]
[1617243145849,2.29038986,19.948,19.539,8.6459742]
[1617243146348,2.29038986,19.948,19.539,415.76776394]
[1617243146549,2.29038986,19.948,19.539,474.1542409]
[1617243146747,2.29038986,19.948,19.539,488.74631761]
[1617243146953,2.29038986,19.948,19.54,8.77397769]
[1617243147250,2.29038986,19.948,19.539,480.10034341]
[1617243147450,2.29038986,19.948,19.54,407.12178974]
[1617243149455,2.29038986,19.948,19.54,415.89044439]
[1617243149656,2.29038986,19.948,19.54,430.50004771]
[1617243150157,2.29038986,19.948,19.54,459.69421211]
[1617243150862,2.29038986,19.948,19.541,23.25373506]
[1617243151262,2.29038986,19.948,19.541,430.3755248]
[1617243152162,2.29038986,19.948,19.541,488.50663823]
[1617243152463,2.29038986,19.948,19.541,517.55301096]
[1617243152662,2.29038986,19.948,19.541,508.83286031]
[1617243152862,2.29038986,19.948,19.541,517.54776748]
[1617243153763,2.29038986,19.948,19.541,508.83286031]
[1617243153962,2.29038986,19.948,19.541,517.56042767]
[1617243154664,2.29038986,19.948,19.541,479.78648758]
[1617243155163,2.29038986,19.948,19.541,721.2335272]
[1617243155463,2.29038986,19.948,19.541,697.97294136]
[1617243157966,2.29038986,19.948,19.541,639.84182793]
[1617243172385,2.29038986,19.948,19.541,407.12178974]
[1617243180802,2.29038986,19.948,19.541,430.44934635]
[1617243181002,2.29038986,19.948,19.541,421.70151262]
[1617243181903,2.29038986,19.948,19.541,407.12178974]
[1617243198837,2.29038986,19.948,19.54,579.64521582]
[1617243199038,2.29038986,19.948,19.542,23.48316531]
[1617243199236,2.29038986,19.948,19.543,8.78188194]
[1617243200238,2.29038986,19.948,19.543,23.43552943]
[1617243200438,2.29038986,19.948,19.543,52.76638737]
[1617243202939,2.29038986,19.948,19.543,169.80682566]
[1617243203539,2.29038986,19.948,19.543,146.37129623]
[1617243204939,2.29038986,19.948,19.543,117.04043829]
[1617243206341,2.29038986,19.948,19.543,125.8647447]
[1617243206542,2.29038986,19.948,19.543,117.04043829]
[1617243206945,2.29038986,19.948,19.543,140.55000743]
[1617243207244,2.29038986,19.948,19.543,169.93674923]
[1617243209047,2.29038986,19.948,19.543,161.1206608]
[1617243209450,2.29038986,19.948,19.543,146.42718009]
[1617243209651,2.29038986,19.948,19.543,117.04043829]